fUSD/lending_fUSD_20240229
["ID","MTS","AMOUNT","RATE_DAILY","PERIOD"]
[315754891,1709165349685,30000.0,0.00023,30]
[315754913,1709165435754,-160.18869668,0.00018176,2]
[315754914,1709165435763,-1267.64668465,0.00018259,2]
[315754915,1709165435821,-145.06780437,0.00018259,2]
[315754916,1709165435831,-386.95430865,0.0001826,2]
[315754917,1709165435844,-2577.28012741,0.0001826,2]
[315754918,1709165435854,-637.54,0.00018276,2]
[315754919,1709165435864,-201.0,0.00018573,2]
[315754920,1709165435874,-902.2718721,0.0001902,2]
[315754921,1709165435892,-1406.9049992,0.0001902,2]
[315754922,1709165435901,-201.0,0.00019514,3]
[315754923,1709165435911,-168.88,0.0001992,2]
[315754924,1709165435921,-673.6650523,0.00019995,2]
[315754925,1709165435938,-961.1149477,0.00019995,2]
[315754926,1709165435948,-150.0,0.00019999,2]
[315754927,1709165435959,-774.56920341,0.0002,2]
[315754928,1709165436040,-19225.43079659,0.0002,2]
[315754929,1709165436049,-499.99,0.0002,2]
[315754930,1709165436059,-2751.0,0.00020038,2]
[315754931,1709165436069,-150.99,0.00020039,2]
[315754932,1709165436080,-23900.0,0.00020082,2]
[315754933,1709165436090,-150.99,0.00020082,2]
[315754934,1709165436100,-1059.54,0.00020082,2]
[315754935,1709165436111,-250.0,0.00020084,2]
[315754936,1709165436124,-716.03,0.00020084,2]
[315754937,1709165436134,-150.0,0.00020099,2]
[315754938,1709165436144,-250.0,0.00020104,2]
[315754940,1709165436154,-500.0,0.00020115,2]
[315754942,1709165436164,-200.0,0.0002018,2]
[315754944,1709165436173,-577.9,0.00020192,2]
[315754946,1709165436183,-183.76556348,0.00020299,2]
[315754947,1709165436192,-665.46,0.000203,10]
[315754948,1709165436201,-500.0,0.00020352,2]
[315754949,1709165436213,-181.82,0.00020378,2]
[315754950,1709165436223,-300.5,0.00020449,2]
[315754951,1709165436234,-201.0,0.00020456,4]
[315754952,1709165436245,-637.54,0.0002054,2]
[315754953,1709165436256,-2000.0,0.00020548,2]
[315754954,1709165436266,-170.96778455,0.00020584,2]
[315754955,1709165436280,-125.86221545,0.00020584,2]
[315754956,1709165436291,-447.23778455,0.00020677,2]
[315754957,1709165436304,-254.45221545,0.00020677,2]
[315754958,1709165436313,-1458.76979005,0.000207,2]
[315754959,1709165436323,-154.0,0.00020929,2]
[315754960,1709165436333,-699.5,0.00020963,2]
[315754961,1709165436344,-20000.0,0.00021,2]
[315754962,1709165436354,-2536.69,0.00021036,2]
[315754963,1709165436367,-1648.85,0.00021096,2]
[315754964,1709165436381,-3240.0,0.00021174,2]
[315754965,1709165436391,-201.0,0.00021397,5]
[315754966,1709165436401,-2538.41,0.00021583,2]
[315754967,1709165436410,-3176.50335486,0.00021698,2]
[315754992,1709165437961,-2286.32879,0.00021698,2]
[315754993,1709165437976,-1012.623474,0.00021698,2]
[315754994,1709165438034,-360.0,0.00021698,2]
[315754995,1709165438049,-12776.86208114,0.00021698,2]
[315754996,1709165438058,-2500.0,0.000218,2]
[315754997,1709165438067,-5000.0,0.000219,2]
[315754998,1709165438077,-1200.0,0.000219,2]
[315754999,1709165438088,-478.0,0.000219,2]
[315755000,1709165438097,-5500.0,0.000219,2]
[315755001,1709165438107,-508.49172606,0.000219,2]
[315755002,1709165438177,-319.30162941,0.000219,2]
[315755003,1709165438187,-919.69,0.00021908,2]
[315755004,1709165438196,-164.4,0.00021918,2]
[315755005,1709165438205,-157.32,0.00021918,2]
[315755006,1709165438216,-150.0,0.00021918,2]
[315755007,1709165438225,-2253.0,0.00021918,2]
[315755008,1709165438235,-155.0,0.00021918,2]
[315755009,1709165438244,-150.0,0.00021951,2]
[315755010,1709165438253,-60000.0,0.0002197,4]
[315755011,1709165438263,-15000.0,0.00022,2]
[315755012,1709165438273,-750.0,0.00022,3]
[315755013,1709165438282,-242.31850583,0.00022024,4]
[315755014,1709165438290,-154.0,0.00022025,2]
[315755015,1709165438299,-249.10988376,0.0002204,2]
[315755016,1709165438309,-407.19,0.00022055,2]
[315755017,1709165438318,-150.0,0.00022097,2]
[315755018,1709165438327,-311.05,0.0002211,2]
[315755019,1709165438336,-2500.0,0.00022164,2]
[315755020,1709165438345,-2358.434,0.00022165,2]
[315755021,1709165438354,-356.79077204,0.00022165,2]
[315755022,1709165438364,-157.17895382,0.00022165,2]
[315755023,1709165438374,-2426.18488185,0.00022165,2]
[315755024,1709165438383,-2499.5,0.00022178,2]
[315755025,1709165438393,-500.0,0.000222,2]
[315755026,1709165438402,-300.0,0.000222,2]
[315755027,1709165438411,-500.0,0.000222,2]
[315755028,1709165438420,-200.0,0.000222,2]
[315755029,1709165438430,-356.79077203,0.00022215,2]
[315755030,1709165438439,-2318.91362109,0.0002223,6]
[315755031,1709165438448,-407.23011792,0.00022265,2]
[315755032,1709165438458,-75941.22907253,0.00022265,4]
[315755033,1709165438469,-406731.18517733,0.00022265,2]
[315755034,1709165438485,-68497.66330689,0.00022265,2]
[315755035,1709165438505,-1523.38870177,0.00022265,2]
[315755036,1709165438520,-549.48871601,0.00022265,2]
[315755037,1709165438531,-11053.67704463,0.00022265,2]
[315755038,1709165438556,-5703.58647979,0.00022265,2]
[315755039,1709165438583,-1518.56671553,0.00022265,2]
[315755040,1709165438594,-1838.9624096,0.00022265,2]
[315755044,1709165438619,-966.47197413,0.00022265,2]
[315755045,1709165438630,-9118.6462455,0.00022265,2]
[315755046,1709165438641,-10476.3366596,0.00022265,2]
[315755047,1709165438653,-403.70016999,0.00022265,2]
[315755048,1709165438663,-349.00382173,0.00022265,2]
[315755049,1709165438675,-661242.25726529,0.00022265,2]
[315755050,1709165438684,-155.0,0.00022265,2]
[315755051,1709165438693,-9369.22190364,0.00022265,2]
[315755052,1709165438702,-2000.0,0.00022265,2]
[315755053,1709165438712,-200.0,0.00022265,2]
[315755054,1709165438722,-2000.0,0.00022265,2]
[315755055,1709165438731,-200.0,0.00022265,2]
[315755056,1709165438740,-356.79077203,0.00022265,2]
[315755057,1709165438749,-157.32,0.00022283,2]
[315755058,1709165438758,-6195.26790809,0.00022286,2]
[315755059,1709165438767,-356.79077203,0.00022315,2]
[315755060,1709165438776,-702.27838556,0.00022315,2]
[315755061,1709165438785,-185.0,0.00022325,2]
[315755062,1709165438794,-424.38,0.00022329,2]
[315755063,1709165438803,-150.0,0.00022329,2]
[315755064,1709165438812,-424.38,0.00022329,2]
[315755065,1709165438821,-424.38,0.00022329,2]
[315755066,1709165438830,-300.0,0.00022329,2]
[315755067,1709165438839,-424.38,0.00022329,2]
[315755068,1709165438848,-424.38,0.00022329,2]
[315755069,1709165438857,-423.18,0.00022329,2]
[315755070,1709165438865,-201.0,0.00022339,7]
[315755071,1709165438874,-6195.26790809,0.00022348,2]
[315755072,1709165438883,-164.4,0.00022356,2]
[315755073,1709165438892,-4901.7017,0.00022364,2]
[315755074,1709165438901,-1545.6662,0.00022365,2]
[315755075,1709165438910,-55555.0,0.00022365,2]
[315755076,1709165438920,-356.79077203,0.00022365,2]
[315755077,1709165438929,-197.60808974,0.00022365,5]
[315755078,1709165438938,-684.10992932,0.00022365,2]
[315755079,1709165438947,-224.57,0.00022379,2]
[315755080,1709165438956,-275.12,0.00022379,2]
[315755081,1709165438966,-1000.0,0.000224,2]
[315755082,1709165438975,-6195.26790809,0.00022409,2]
[315755083,1709165438984,-532.85,0.00022433,2]
[315755084,1709165438993,-44443.7523581,0.0002244,2]
[315755085,1709165439002,-155.0,0.00022463,2]
[315755086,1709165439011,-155.0,0.00022463,2]
[315755087,1709165439020,-1009.34064671,0.00022463,2]
[315755088,1709165439029,-2138.48916984,0.00022463,2]
[315755089,1709165439038,-691.59432663,0.00022463,2]
[315755090,1709165439047,-1594.59734943,0.00022463,2]
[315755091,1709165439056,-339.81879093,0.00022463,2]
[315755092,1709165439065,-14671.17726001,0.00022463,2]
[315755093,1709165439074,-482.6478893,0.00022463,2]
[315755094,1709165439097,-677.77743885,0.00022463,2]
[315755095,1709165439106,-1050.21871311,0.00022463,2]
[315755096,1709165439115,-203.97568013,0.00022463,2]
[315755097,1709165439124,-526.36933027,0.00022463,2]
[315755098,1709165439133,-155.0,0.00022463,2]
[315755099,1709165439143,-375.75248692,0.00022463,2]
[315755100,1709165439152,-434.12228249,0.00022464,2]
[315755101,1709165439161,-409.94996054,0.00022464,2]
[315755102,1709165439170,-263.1620678,0.00022464,2]
[315755103,1709165439181,-727810.61541224,0.00022464,2]
[315755104,1709165439190,-1087.55572455,0.00022465,3]
[315755105,1709165439199,-533.39646219,0.00022465,2]
[315755106,1709165439208,-500.0,0.00022465,2]
[315755107,1709165439221,-500.0,0.00022465,2]
[315755108,1709165439230,-500.0,0.00022465,2]
[315755109,1709165439239,-500.0,0.00022465,2]
[315755110,1709165439249,-231.4689337,0.00022465,2]
[315755111,1709165439258,-194.63,0.00022465,2]
[315755112,1709165439267,-357.04424165,0.00022465,2]
[315755113,1709165439277,-500.0,0.00022465,2]
[315755114,1709165439286,-500.0,0.00022465,2]
[315755115,1709165439295,-500.0,0.00022465,2]
[315755116,1709165439304,-500.0,0.00022465,2]
[315755117,1709165439313,-500.0,0.00022465,2]
[315755118,1709165439322,-500.0,0.00022465,2]
[315755119,1709165439331,-500.0,0.00022465,2]
[315755120,1709165439341,-500.0,0.00022465,2]
[315755121,1709165439350,-500.0,0.00022465,2]
[315755122,1709165439359,-609.21122021,0.00022465,2]
[315755123,1709165439369,-500.0,0.00022465,2]
[315755124,1709165439378,-500.0,0.00022465,2]
[315755125,1709165439387,-500.0,0.00022465,2]
[315755126,1709165439397,-500.0,0.00022465,2]
[315755127,1709165439407,-500.0,0.00022465,2]
[315755128,1709165439416,-500.0,0.00022465,2]
[315755129,1709165439425,-500.0,0.00022465,2]
[315755130,1709165439434,-375.46671586,0.00022465,2]
[315755131,1709165439444,-438.78004905,0.00022465,2]
[315755132,1709165439453,-500.0,0.00022465,2]
[315755133,1709165439463,-500.0,0.00022465,2]
[315755134,1709165439472,-500.0,0.00022465,2]
[315755135,1709165439481,-500.0,0.00022465,2]
[315755136,1709165439490,-500.0,0.00022465,2]
[315755137,1709165439499,-500.0,0.00022465,2]
[315755138,1709165439513,-500.0,0.00022465,2]
[315755139,1709165439523,-500.0,0.00022465,2]
[315755140,1709165439532,-500.0,0.00022465,2]
[315755141,1709165439541,-500.0,0.00022465,2]
[315755142,1709165439551,-151.0,0.00022465,7]
[315755143,1709165439560,-500.0,0.00022465,2]
[315755144,1709165439570,-151.0,0.00022465,7]
[315755145,1709165439579,-500.0,0.00022465,2]
[315755146,1709165439588,-194.0,0.00022465,7]
[315755147,1709165439597,-500.0,0.00022465,2]
[315755148,1709165439606,-500.0,0.00022465,2]
[315755149,1709165439616,-500.0,0.00022465,2]
[315755150,1709165439625,-500.0,0.00022465,2]
[315755151,1709165439634,-500.0,0.00022465,2]
[315755152,1709165439643,-500.0,0.00022465,2]
[315755153,1709165439652,-500.0,0.00022465,2]
[315755154,1709165439661,-500.0,0.00022465,2]
[315755155,1709165439673,-500.0,0.00022465,2]
[315755156,1709165439682,-500.0,0.00022465,2]
[315755157,1709165439691,-500.0,0.00022465,2]
[315755158,1709165439700,-500.0,0.00022465,2]
[315755159,1709165439709,-500.0,0.00022465,2]
[315755160,1709165439720,-541.12,0.00022465,2]
[315755161,1709165439729,-500.0,0.00022465,2]
[315755162,1709165439738,-500.0,0.00022465,2]
[315755163,1709165439747,-500.0,0.00022465,2]
[315755164,1709165439757,-500.0,0.00022465,2]
[315755165,1709165439766,-500.0,0.00022465,2]
[315755166,1709165439775,-500.0,0.00022465,2]
[315755167,1709165439785,-545.48,0.00022465,2]
[315755168,1709165439794,-500.0,0.00022465,2]
[315755169,1709165439804,-500.0,0.00022465,2]
[315755170,1709165439815,-500.0,0.00022465,2]
[315755171,1709165439824,-500.0,0.00022465,2]
[315755172,1709165439833,-558.76368873,0.00022465,2]
[315755173,1709165439843,-500.0,0.00022465,2]
[315755174,1709165439853,-500.0,0.00022465,2]
[315755175,1709165439862,-500.0,0.00022465,2]
[315755176,1709165439871,-500.0,0.00022465,2]
[315755177,1709165439880,-500.0,0.00022465,2]
[315755178,1709165439889,-500.0,0.00022465,2]
[315755179,1709165439898,-489.0,0.00022465,2]
[315755180,1709165439908,-500.0,0.00022465,2]
[315755181,1709165439917,-500.0,0.00022465,2]
[315755182,1709165439930,-500.0,0.00022465,2]
[315755183,1709165439939,-500.0,0.00022465,2]
[315755184,1709165439949,-500.0,0.00022465,2]
[315755185,1709165439958,-500.0,0.00022465,2]
[315755186,1709165439969,-500.0,0.00022465,2]
[315755187,1709165439978,-500.0,0.00022465,2]
[315755188,1709165439987,-500.0,0.00022465,2]
[315755189,1709165439996,-500.0,0.00022465,2]
[315755190,1709165440005,-500.0,0.00022465,2]
[315755191,1709165440014,-500.0,0.00022465,2]
[315755192,1709165440023,-500.0,0.00022465,2]
[315755193,1709165440031,-500.0,0.00022465,2]
[315755194,1709165440040,-514.36,0.00022465,2]
[315755195,1709165440050,-514.36,0.00022465,2]
[315755196,1709165440059,-514.36,0.00022465,2]
[315755197,1709165440068,-514.36,0.00022465,2]
[315755198,1709165440077,-500.0,0.00022465,2]
[315755199,1709165440098,-500.0,0.00022465,2]
[315755200,1709165440108,-500.0,0.00022465,2]
[315755201,1709165440117,-234.64589572,0.00022465,2]
[315755202,1709165440126,-500.0,0.00022465,2]
[315755203,1709165440135,-500.0,0.00022465,2]
[315755204,1709165440144,-500.0,0.00022465,2]
[315755205,1709165440154,-500.0,0.00022465,2]
[315755206,1709165440163,-500.0,0.00022465,2]
[315755207,1709165440172,-500.0,0.00022465,2]
[315755208,1709165440181,-500.0,0.00022465,2]
[315755209,1709165440191,-500.0,0.00022465,2]
[315755210,1709165440201,-500.0,0.00022465,2]
[315755211,1709165440211,-500.0,0.00022465,2]
[315755212,1709165440220,-590.78924052,0.00022465,2]
[315755213,1709165440229,-290.07640737,0.00022465,2]
[315755214,1709165440239,-500.0,0.00022465,2]
[315755215,1709165440248,-500.0,0.00022465,2]
[315755216,1709165440257,-500.0,0.00022465,2]
[315755217,1709165440267,-500.0,0.00022465,2]
[315755218,1709165440276,-500.0,0.00022465,2]
[315755219,1709165440285,-500.0,0.00022465,2]
[315755220,1709165440294,-500.0,0.00022465,2]
[315755221,1709165440303,-500.0,0.00022465,2]
[315755222,1709165440312,-500.0,0.00022465,2]
[315755223,1709165440321,-500.0,0.00022465,2]
[315755224,1709165440330,-500.0,0.00022465,2]
[315755225,1709165440339,-500.0,0.00022465,2]
[315755226,1709165440349,-500.0,0.00022465,2]
[315755227,1709165440359,-500.0,0.00022465,2]
[315755228,1709165440368,-500.0,0.00022465,2]
[315755229,1709165440378,-500.0,0.00022465,2]
[315755230,1709165440387,-500.0,0.00022465,2]
[315755231,1709165440396,-500.0,0.00022465,2]
[315755232,1709165440406,-500.0,0.00022465,2]
[315755233,1709165440417,-500.0,0.00022465,2]
[315755234,1709165440427,-500.0,0.00022465,2]
[315755235,1709165440437,-500.0,0.00022465,2]
[315755236,1709165440447,-500.0,0.00022465,2]
[315755237,1709165440456,-500.0,0.00022465,2]
[315755238,1709165440468,-354.23188506,0.00022465,2]
[315755239,1709165440478,-500.0,0.00022465,2]
[315755240,1709165440487,-557.77191152,0.00022465,2]
[315755241,1709165440496,-500.0,0.00022465,2]
[315755242,1709165440507,-515.41424917,0.00022465,2]
[315755243,1709165440517,-500.0,0.00022465,2]
[315755244,1709165440526,-500.0,0.00022465,2]
[315755245,1709165440539,-500.0,0.00022465,2]
[315755246,1709165440548,-500.0,0.00022465,2]
[315755247,1709165440558,-500.0,0.00022465,2]
[315755248,1709165440567,-500.0,0.00022465,2]
[315755249,1709165440577,-500.0,0.00022465,2]
[315755250,1709165440587,-500.0,0.00022465,2]
[315755251,1709165440596,-500.0,0.00022465,2]
[315755252,1709165440606,-500.0,0.00022465,2]
[315755253,1709165440617,-500.0,0.00022465,2]
[315755254,1709165440628,-500.0,0.00022465,2]
[315755255,1709165440637,-500.0,0.00022465,2]
[315755256,1709165440646,-500.0,0.00022465,2]
[315755257,1709165440656,-500.0,0.00022465,2]
[315755258,1709165440666,-500.0,0.00022465,2]
[315755259,1709165440676,-500.0,0.00022465,2]
[315755260,1709165440686,-500.0,0.00022465,2]
[315755261,1709165440695,-500.0,0.00022465,2]
[315755262,1709165440704,-500.0,0.00022465,2]
[315755263,1709165440716,-633.59568906,0.00022465,2]
[315755264,1709165440725,-500.0,0.00022465,2]
[315755265,1709165440735,-500.0,0.00022465,2]
[315755266,1709165440744,-500.0,0.00022465,2]
[315755267,1709165440753,-500.0,0.00022465,2]
[315755268,1709165440762,-500.0,0.00022465,2]
[315755269,1709165440771,-500.0,0.00022465,2]
[315755270,1709165440781,-500.0,0.00022465,2]
[315755271,1709165440790,-500.0,0.00022465,2]
[315755272,1709165440799,-500.0,0.00022465,2]
[315755273,1709165440808,-500.0,0.00022465,2]
[315755274,1709165440818,-500.0,0.00022465,2]
[315755275,1709165440827,-500.0,0.00022465,2]
[315755276,1709165440837,-500.0,0.00022465,2]
[315755277,1709165440847,-500.0,0.00022465,2]
[315755278,1709165440856,-500.0,0.00022465,2]
[315755279,1709165440866,-500.0,0.00022465,2]
[315755280,1709165440877,-500.0,0.00022465,2]
[315755281,1709165440886,-230.11681152,0.00022465,2]
[315755282,1709165440896,-500.0,0.00022465,2]
[315755283,1709165440905,-500.0,0.00022465,2]
[315755284,1709165440917,-500.0,0.00022465,2]
[315755285,1709165440927,-500.0,0.00022465,2]
[315755286,1709165440938,-500.0,0.00022465,2]
[315755287,1709165440948,-500.0,0.00022465,2]
[315755288,1709165440958,-500.0,0.00022465,2]
[315755289,1709165440970,-634.77360053,0.00022465,2]
[315755290,1709165440980,-500.0,0.00022465,2]
[315755291,1709165440989,-500.0,0.00022465,2]
[315755292,1709165440998,-500.0,0.00022465,2]
[315755293,1709165441008,-500.0,0.00022465,2]
[315755294,1709165441017,-500.0,0.00022465,2]
[315755295,1709165441026,-500.0,0.00022465,2]
[315755296,1709165441035,-500.0,0.00022465,2]
[315755297,1709165441044,-500.0,0.00022465,2]
[315755298,1709165441053,-500.0,0.00022465,2]
[315755299,1709165441064,-500.0,0.00022465,2]
[315755300,1709165441073,-500.0,0.00022465,2]
[315755301,1709165441082,-500.0,0.00022465,2]
[315755302,1709165441091,-500.0,0.00022465,2]
[315755303,1709165441100,-500.0,0.00022465,2]
[315755304,1709165441109,-500.0,0.00022465,2]
[315755305,1709165441119,-500.0,0.00022465,2]
[315755306,1709165441129,-300.632248,0.00022465,2]
[315755307,1709165441138,-500.0,0.00022465,2]
[315755308,1709165441147,-500.0,0.00022465,2]
[315755309,1709165441157,-500.0,0.00022465,2]
[315755310,1709165441166,-500.0,0.00022465,2]
[315755311,1709165441175,-500.0,0.00022465,2]
[315755312,1709165441184,-500.0,0.00022465,2]
[315755313,1709165441193,-500.0,0.00022465,2]
[315755314,1709165441202,-500.0,0.00022465,2]
[315755315,1709165441213,-500.0,0.00022465,2]
[315755316,1709165441222,-500.0,0.00022465,2]
[315755317,1709165441231,-500.0,0.00022465,2]
[315755318,1709165441239,-413.83535525,0.00022465,2]
[315755319,1709165441248,-500.0,0.00022465,2]
[315755320,1709165441257,-469.32,0.00022465,2]
[315755321,1709165441266,-500.0,0.00022465,2]
[315755322,1709165441275,-500.0,0.00022465,2]
[315755323,1709165441284,-500.0,0.00022465,2]
[315755324,1709165441293,-500.0,0.00022465,2]
[315755325,1709165441303,-212.65727633,0.00022465,2]
[315755326,1709165441312,-500.0,0.00022465,2]
[315755327,1709165441322,-500.0,0.00022465,2]
[315755328,1709165441331,-500.0,0.00022465,2]
[315755329,1709165441341,-500.0,0.00022465,2]
[315755330,1709165441352,-500.0,0.00022465,2]
[315755331,1709165441362,-500.0,0.00022465,2]
[315755332,1709165441371,-500.0,0.00022465,2]
[315755333,1709165441381,-500.0,0.00022465,2]
[315755334,1709165441390,-500.0,0.00022465,2]
[315755335,1709165441399,-500.0,0.00022465,2]
[315755336,1709165441408,-500.0,0.00022465,2]
[315755337,1709165441417,-500.0,0.00022465,2]
[315755338,1709165441426,-500.0,0.00022465,2]
[315755339,1709165441435,-500.0,0.00022465,2]
[315755340,1709165441444,-500.0,0.00022465,2]
[315755341,1709165441453,-500.0,0.00022465,2]
[315755342,1709165441464,-500.0,0.00022465,2]
[315755344,1709165441474,-500.0,0.00022465,2]
[315755345,1709165441483,-500.0,0.00022465,2]
[315755346,1709165441492,-495.18624535,0.00022465,2]
[315755347,1709165441501,-500.0,0.00022465,2]
[315755348,1709165441512,-500.0,0.00022465,2]
[315755349,1709165441521,-500.0,0.00022465,2]
[315755350,1709165441533,-500.0,0.00022465,2]
[315755351,1709165441542,-500.0,0.00022465,2]
[315755352,1709165441550,-500.0,0.00022465,2]
[315755353,1709165441559,-500.0,0.00022465,2]
[315755354,1709165441569,-500.0,0.00022465,2]
[315755355,1709165441578,-551.84412515,0.00022465,2]
[315755356,1709165441587,-500.0,0.00022465,2]
[315755357,1709165441597,-500.0,0.00022465,2]
[315755358,1709165441806,-500.0,0.00022465,2]
[315755359,1709165441816,-500.0,0.00022465,2]
[315755360,1709165441826,-500.0,0.00022465,2]
[315755361,1709165441836,-500.0,0.00022465,2]
[315755362,1709165441845,-628.19,0.00022465,2]
[315755363,1709165441855,-500.0,0.00022465,2]
[315755364,1709165441864,-500.0,0.00022465,2]
[315755365,1709165441874,-500.0,0.00022465,2]
[315755366,1709165441885,-500.0,0.00022465,2]
[315755367,1709165441894,-500.0,0.00022465,2]
[315755368,1709165441904,-567.66082552,0.00022465,2]
[315755369,1709165441914,-500.0,0.00022465,2]
[315755370,1709165441923,-500.0,0.00022465,2]
[315755371,1709165441933,-500.0,0.00022465,2]
[315755372,1709165441942,-500.0,0.00022465,2]
[315755373,1709165441952,-500.0,0.00022465,2]
[315755374,1709165441961,-191.31541362,0.00022465,2]
[315755375,1709165441971,-500.0,0.00022465,2]
[315755376,1709165441980,-500.0,0.00022465,2]
[315755377,1709165441990,-500.0,0.00022465,2]
[315755378,1709165441999,-232.66,0.00022465,2]
[315755379,1709165442008,-500.0,0.00022465,2]
[315755380,1709165442017,-500.0,0.00022465,2]
[315755381,1709165442027,-500.0,0.00022465,2]
[315755382,1709165442036,-500.0,0.00022465,2]
[315755383,1709165442045,-500.0,0.00022465,2]
[315755384,1709165442055,-500.0,0.00022465,2]
[315755385,1709165442065,-500.0,0.00022465,2]
[315755386,1709165442074,-500.0,0.00022465,2]
[315755387,1709165442084,-500.0,0.00022465,2]
[315755388,1709165442093,-500.0,0.00022465,2]
[315755389,1709165442103,-500.0,0.00022465,2]
[315755390,1709165442112,-500.0,0.00022465,2]
[315755391,1709165442121,-500.0,0.00022465,2]
[315755392,1709165442131,-500.0,0.00022465,2]
[315755393,1709165442141,-500.0,0.00022465,2]
[315755394,1709165442150,-500.0,0.00022465,2]
[315755395,1709165442160,-500.0,0.00022465,2]
[315755396,1709165442169,-500.0,0.00022465,2]
[315755397,1709165442179,-500.0,0.00022465,2]
[315755398,1709165442188,-500.0,0.00022465,2]
[315755399,1709165442198,-500.0,0.00022465,2]
[315755400,1709165442207,-500.0,0.00022465,2]
[315755401,1709165442218,-500.0,0.00022465,2]
[315755402,1709165442228,-500.0,0.00022465,2]
[315755403,1709165442238,-500.0,0.00022465,2]
[315755404,1709165442248,-500.0,0.00022465,2]
[315755405,1709165442259,-500.0,0.00022465,2]
[315755406,1709165442270,-545.64445427,0.00022465,2]
[315755407,1709165442281,-500.0,0.00022465,2]
[315755408,1709165442293,-500.0,0.00022465,2]
[315755409,1709165442303,-500.0,0.00022465,2]
[315755410,1709165442313,-500.0,0.00022465,2]
[315755411,1709165442323,-500.0,0.00022465,2]
[315755412,1709165442333,-500.0,0.00022465,2]
[315755413,1709165442342,-500.0,0.00022465,2]
[315755414,1709165442352,-500.0,0.00022465,2]
[315755415,1709165442361,-500.0,0.00022465,2]
[315755416,1709165442371,-500.0,0.00022465,2]
[315755417,1709165442381,-500.0,0.00022465,2]
[315755418,1709165442391,-363.0481969,0.00022465,2]
[315755419,1709165442401,-500.0,0.00022465,2]
[315755420,1709165442410,-500.0,0.00022465,2]
[315755421,1709165442421,-500.0,0.00022465,2]
[315755422,1709165442430,-500.0,0.00022465,2]
[315755423,1709165442440,-500.0,0.00022465,2]
[315755424,1709165442450,-500.0,0.00022465,2]
[315755425,1709165442460,-500.0,0.00022465,2]
[315755426,1709165442473,-500.0,0.00022465,2]
[315755427,1709165442484,-500.0,0.00022465,2]
[315755428,1709165442494,-205.25216295,0.00022465,2]
[315755429,1709165442505,-500.0,0.00022465,2]
[315755430,1709165442521,-500.0,0.00022465,2]
[315755431,1709165442531,-500.0,0.00022465,2]
[315755432,1709165442542,-500.0,0.00022465,2]
[315755433,1709165442552,-558.61428416,0.00022465,2]
[315755434,1709165442562,-561.25176974,0.00022465,2]
[315755435,1709165442572,-500.0,0.00022465,2]
[315755436,1709165442582,-613.326172,0.00022465,2]
[315755437,1709165442592,-500.0,0.00022465,2]
[315755438,1709165442602,-621.98,0.00022465,2]
[315755439,1709165442612,-621.98,0.00022465,2]
[315755440,1709165442622,-500.0,0.00022465,2]
[315755441,1709165442632,-621.98,0.00022465,2]
[315755442,1709165442642,-500.0,0.00022465,2]
[315755443,1709165442652,-621.98,0.00022465,2]